bitfinex/quotes_BTCUSD_20240605
["timestamp","ask_amount","ask_price","bid_price","bid_amount"]
[1717554228688,0.141972,70936.0,70935.0,0.008946]
[1717554229064,0.141972,70936.0,70935.0,0.016946]
[1717554237854,0.21714634,70936.0,70935.0,0.016946]
[1717554238058,0.216972,70936.0,70935.0,0.016946]
[1717554242417,0.076,70936.0,70935.0,0.33637166]
[1717554242625,0.076,70936.0,70935.0,0.47734566]
[1717554243033,0.076,70936.0,70935.0,0.33637166]
[1717554243787,0.075,70936.0,70935.0,0.46134566]
[1717554244393,0.076,70936.0,70935.0,0.49934566]
[1717554244625,0.075,70936.0,70935.0,0.47534566]
[1717554244925,0.076,70936.0,70935.0,0.47534566]
[1717554245342,0.076,70936.0,70935.0,0.48934566]
[1717554245759,0.076,70936.0,70935.0,0.47534566]
[1717554246207,0.076,70936.0,70935.0,0.48534566]
[1717554246845,0.076,70936.0,70935.0,0.91171259]
[1717554247066,0.075,70936.0,70935.0,0.89771259]
[1717554247315,0.075,70936.0,70935.0,0.91171259]
[1717554247579,0.075,70936.0,70935.0,0.92571259]
[1717554247795,0.075,70936.0,70935.0,0.89771259]
[1717554247998,0.075,70936.0,70935.0,0.91171259]
[1717554248202,0.075,70936.0,70935.0,0.92571259]
[1717554248415,0.075,70936.0,70935.0,0.89771259]
[1717554248861,0.075,70936.0,70935.0,0.92571259]
[1717554249263,0.075,70936.0,70935.0,0.96770994]
[1717554249711,0.075,70936.0,70935.0,0.95370994]
[1717554249960,0.075,70936.0,70935.0,0.98690994]
[1717554250183,0.075,70936.0,70935.0,1.03980994]
[1717554250396,0.075,70936.0,70935.0,1.07480862]
[1717554250808,0.075,70936.0,70935.0,1.01181259]
[1717554251023,0.075,70936.0,70935.0,1.02581259]
[1717554251261,0.075,70936.0,70935.0,1.1098073]
[1717554251474,0.075,70936.0,70935.0,1.2958073]
[1717554251675,0.075,70936.0,70935.0,1.21181259]
[1717554251882,0.075,70936.0,70935.0,1.0958073]
[1717554252295,0.075,70936.0,70935.0,1.22581259]
[1717554252526,0.075,70936.0,70935.0,1.02581259]
[1717554252781,0.075,70936.0,70935.0,1.01181259]
[1717554252990,0.075,70936.0,70935.0,1.22581259]
[1717554253193,0.075,70936.0,70935.0,0.85891259]
[1717554253403,0.075,70936.0,70935.0,0.92212597]
[1717554253812,0.075,70936.0,70935.0,0.90812597]
[1717554254020,0.075,70936.0,70935.0,0.84491259]
[1717554254235,0.075,70936.0,70935.0,0.85891259]
[1717554254752,0.075,70936.0,70935.0,0.84491259]
[1717554254953,0.075,70936.0,70935.0,0.85891259]
[1717554255156,0.075,70936.0,70935.0,0.9431971]
[1717554255358,0.075,70936.0,70935.0,0.84491259]
[1717554255689,0.075,70936.0,70935.0,0.85891259]
[1717554256226,0.075,70936.0,70935.0,0.9431971]
[1717554257232,0.075,70936.0,70935.0,0.85891259]
[1717554258133,0.075,70936.0,70935.0,2.01280859]
[1717554258337,0.075,70936.0,70935.0,2.13580859]
[1717554258745,0.075,70936.0,70935.0,2.1578316]
[1717554258959,0.075,70936.0,70935.0,2.1438316]
[1717554259177,0.002,70969.0,70968.0,0.01982566]
[1717554260219,0.002,70969.0,70968.0,0.16073366]
[1717554261314,0.002,70969.0,70968.0,0.16673366]
[1717554261531,0.002,70969.0,70968.0,0.17673366]
[1717554261772,0.002,70969.0,70968.0,0.18073366]
[1717554261991,0.002,70969.0,70968.0,0.17073366]
[1717554262483,0.002,70969.0,70968.0,0.18473366]
[1717554263387,0.002,70969.0,70968.0,0.19873366]
[1717554263804,0.002,70969.0,70968.0,0.18473366]
[1717554264118,0.002,70969.0,70968.0,0.19873366]
[1717554264538,0.002,70969.0,70968.0,0.17473366]
[1717554264955,0.002,70969.0,70968.0,0.18873366]
[1717554266243,0.002,70969.0,70968.0,0.17473366]
[1717554266450,0.002,70969.0,70968.0,0.16073366]
[1717554266654,0.002,70969.0,70968.0,0.18873366]
[1717554267181,0.002,70969.0,70968.0,0.17473366]
[1717554267396,0.002,70969.0,70968.0,0.18873366]
[1717554267782,0.002,70969.0,70968.0,0.17473366]
[1717554268575,0.002,70969.0,70968.0,0.18873366]
[1717554269191,0.002,70969.0,70968.0,0.47055066]
[1717554269414,0.002,70969.0,70968.0,0.48055066]
[1717554269868,0.002,70969.0,70968.0,0.62496959]
[1717554270096,0.002,70969.0,70968.0,1.05206959]
[1717554270334,0.002,70969.0,70968.0,1.43388659]
[1717554271017,0.002,70969.0,70968.0,1.63388659]
[1717554272082,0.002,70969.0,70968.0,1.73388659]
[1717554272967,0.002,70969.0,70968.0,2.31570359]
[1717554273830,0.002,70969.0,70968.0,2.30170359]
[1717554274255,0.002,70969.0,70968.0,2.31570359]
[1717554274659,0.002,70969.0,70968.0,2.30170359]
[1717554276141,0.002,70969.0,70968.0,2.10170359]
[1717554276350,0.002,70969.0,70968.0,2.31570359]
[1717554276558,0.002,70969.0,70968.0,2.14900359]
[1717554276785,0.002,70969.0,70968.0,1.41618659]
[1717554277001,0.002,70969.0,70968.0,1.43018659]
[1717554277240,0.002,70969.0,70968.0,1.61088659]
[1717554277627,0.002,70969.0,70968.0,1.60745397]
[1717554277847,0.002,70969.0,70968.0,1.80745397]
[1717554278046,0.002,70969.0,70968.0,1.62145397]
[1717554278254,0.002,70969.0,70968.0,1.61088659]
[1717554278474,0.002,70969.0,70968.0,0.18873366]
[1717554279869,0.002,70969.0,70968.0,0.16073366]
[1717554279994,0.002,70969.0,70968.0,0.17473366]
[1717554280201,0.002,70969.0,70968.0,0.18873366]
[1717554280662,0.002,70969.0,70968.0,0.31915259]
[1717554280896,0.002,70969.0,70968.0,0.31515259]
[1717554281115,0.002,70969.0,70968.0,0.77216959]
[1717554281551,0.002,70969.0,70968.0,0.78616959]
[1717554282470,0.002,70969.0,70968.0,1.30498659]
[1717554282711,0.002,70969.0,70968.0,1.55528659]
[1717554282888,0.002,70969.0,70968.0,1.54128659]
[1717554283045,0.002,70969.0,70968.0,1.55528659]
[1717554283285,0.002,70969.0,70968.0,1.56928659]
[1717554283722,0.002,70969.0,70968.0,1.55528659]
[1717554283883,0.002,70969.0,70968.0,1.35528659]
[1717554284079,0.002,70969.0,70968.0,1.56928659]
[1717554284284,0.002,70969.0,70968.0,1.36928659]
[1717554284700,0.002,70969.0,70968.0,1.56928659]
[1717554286769,0.002,70969.0,70968.0,1.36928659]
[1717554287301,0.002,70969.0,70968.0,1.56928659]
[1717554288506,0.002,70969.0,70968.0,1.36928659]
[1717554288683,0.002,70969.0,70968.0,1.56928659]
[1717554290161,0.002,70969.0,70968.0,1.58647944]
[1717554290362,0.002,70969.0,70968.0,1.48647944]
[1717554290568,0.002,70969.0,70968.0,2.06829644]
[1717554290803,0.002,70969.0,70968.0,2.16829644]
[1717554291071,0.002,70969.0,70968.0,2.1311368]
[1717554291279,0.002,70969.0,70968.0,2.25208359]
[1717554291635,0.002,70969.0,70968.0,2.16829644]
[1717554291835,0.002,70969.0,70968.0,2.25208359]
[1717554292040,0.002,70969.0,70968.0,2.15429644]
[1717554292247,0.002,70969.0,70968.0,2.27303038]
[1717554292780,0.002,70969.0,70968.0,2.15429644]
[1717554292985,0.002,70969.0,70968.0,2.2732086]
[1717554293387,0.002,70969.0,70968.0,2.16829644]
[1717554293563,0.002,70969.0,70968.0,2.15429644]
[1717554293973,0.002,70969.0,70968.0,2.16829644]
[1717554294224,0.002,70969.0,70968.0,2.15429644]
[1717554294455,0.002,70969.0,70968.0,2.17630971]
[1717554295543,0.002,70969.0,70968.0,2.25926275]
[1717554296328,0.002,70969.0,70968.0,1.44081011]
[1717554296540,0.002,70969.0,70968.0,1.14196896]
[1717554296745,0.002,70969.0,70968.0,1.07897926]
[1717554296960,0.002,70969.0,70968.0,1.14878641]
[1717554297173,0.002,70969.0,70968.0,1.13878641]
[1717554297585,0.002,70969.0,70968.0,1.06878659]
[1717554297788,0.002,70969.0,70968.0,0.81096959]
[1717554298117,0.002,70969.0,70968.0,0.86698055]
[1717554299313,0.002,70969.0,70968.0,0.85298055]
[1717554299523,0.002,70969.0,70968.0,0.86698055]
[1717554299733,0.002,70969.0,70968.0,0.85298055]
[1717554300139,0.002,70969.0,70968.0,0.75698055]
[1717554300464,0.0845,70969.0,70968.0,0.18873366]
[1717554300866,0.0845,70969.0,70968.0,0.028]
[1717554301413,0.0845,70969.0,70968.0,0.014]
[1717554301833,0.241,70969.0,70968.0,0.028]
[1717554302497,0.241,70969.0,70968.0,0.014]
[1717554302725,0.24117434,70969.0,70968.0,0.028]
[1717554302904,0.38208034,70969.0,70968.0,0.028]
[1717554303184,0.38208034,70969.0,70968.0,0.014]
[1717554303459,0.0818,70961.0,70954.0,0.4731]
[1717554303650,0.1583,70960.0,70956.0,0.01982566]
[1717554303881,0.1583,70960.0,70958.0,0.01982566]
[1717554304343,0.1583,70960.0,70955.0,0.01982566]
[1717554304574,0.1583,70960.0,70958.0,0.01982566]
[1717554304810,0.1598,70970.0,70967.0,0.01982566]
[1717554305052,0.1598,70970.0,70968.0,0.01982566]
[1717554305053,0.102,70969.0,70968.0,0.01982566]
[1717554305304,0.102,70969.0,70968.0,0.16073366]
[1717554305529,0.102,70969.0,70968.0,0.30515259]
[1717554307510,0.102,70969.0,70968.0,0.31915259]
[1717554307945,0.102,70969.0,70968.0,0.33315259]
[1717554309082,0.102,70969.0,70968.0,0.31915259]
[1717554309519,0.102,70969.0,70968.0,0.33315259]
[1717554309970,0.102,70969.0,70968.0,0.34315259]
[1717554310178,0.102,70969.0,70968.0,0.33315259]
[1717554310424,0.102,70969.0,70968.0,0.34315259]
[1717554310644,0.102,70969.0,70968.0,0.38516355]
[1717554311325,0.102,70969.0,70968.0,0.37516355]
[1717554311837,0.102,70969.0,70968.0,0.38516355]
[1717554312244,0.102,70969.0,70968.0,0.38527025]
[1717554312868,0.102,70969.0,70968.0,0.37527025]
[1717554313077,0.102,70969.0,70968.0,0.38527025]
[1717554313678,0.102,70969.0,70968.0,0.66708725]
[1717554314823,0.102,70969.0,70968.0,0.62496959]
[1717554315452,0.102,70969.0,70968.0,0.61496959]
[1717554315654,0.102,70969.0,70968.0,0.62496959]
[1717554316391,0.102,70969.0,70968.0,0.61496959]
[1717554316784,0.102,70969.0,70968.0,0.62496959]
[1717554317002,0.102,70969.0,70968.0,0.66708999]
[1717554317141,0.102,70969.0,70968.0,0.65708999]
[1717554317354,0.102,70969.0,70968.0,0.61496959]
[1717554317575,0.102,70969.0,70968.0,0.33315259]
[1717554317773,0.102,70969.0,70968.0,0.37527322]
[1717554319255,0.102,70969.0,70968.0,0.33315259]
[1717554319871,0.102,70969.0,70968.0,0.62496959]
[1717554320231,0.102,70969.0,70968.0,0.68814608]
[1717554320453,0.102,70969.0,70968.0,0.62496959]
[1717554321173,0.102,70969.0,70968.0,0.68815278]
[1717554321403,0.102,70969.0,70968.0,0.61496959]
[1717554321813,0.102,70969.0,70968.0,0.62496959]
[1717554322461,0.102,70969.0,70968.0,0.70920491]
[1717554322902,0.102,70969.0,70968.0,1.36102191]
[1717554323330,0.102,70969.0,70968.0,1.44348659]
[1717554323531,0.102,70969.0,70968.0,1.54880426]
[1717554323976,0.102,70969.0,70968.0,1.44348659]
[1717554325287,0.102,70969.0,70968.0,1.83348659]
[1717554325502,0.102,70969.0,70968.0,1.93348659]
[1717554326175,0.102,70969.0,70968.0,2.21530359]
[1717554326876,0.102,70969.0,70968.0,2.31530359]
[1717554327125,0.102,70969.0,70968.0,2.33731687]
[1717554327356,0.102,70969.0,70968.0,2.31530359]
[1717554327841,0.102,70969.0,70968.0,2.30130359]
[1717554328119,0.102,70969.0,70968.0,2.31530359]
[1717554328555,0.102,70969.0,70968.0,2.30130359]
[1717554329028,0.102,70969.0,70968.0,2.31530359]
[1717554329475,0.102,70969.0,70968.0,2.30130359]
[1717554329905,0.102,70969.0,70968.0,2.32930359]
[1717554330353,0.102,70969.0,70968.0,2.28730359]
[1717554330793,0.102,70969.0,70968.0,2.32331686]
[1717554331014,0.102,70969.0,70968.0,2.33731686]
[1717554331790,0.102,70969.0,70968.0,2.32331686]
[1717554332621,0.102,70969.0,70968.0,2.30931686]
[1717554332796,0.102,70969.0,70968.0,2.32331686]
[1717554333388,0.102,70969.0,70968.0,2.33731686]
[1717554333862,0.102,70969.0,70968.0,2.31530359]
[1717554339841,0.102,70969.0,70968.0,2.23731704]
[1717554342130,0.102,70969.0,70968.0,2.03731704]
[1717554342394,0.102,70969.0,70968.0,2.23731704]
[1717554342908,0.102,70969.0,70968.0,2.36360753]
[1717554343357,0.102,70969.0,70968.0,2.03731704]
[1717554343583,0.102,70969.0,70968.0,2.23731704]
[1717554344031,0.102,70969.0,70968.0,2.36360138]
[1717554344251,0.102,70969.0,70968.0,2.16360138]
[1717554344877,0.102,70969.0,70968.0,2.36360138]
[1717554345309,0.2596,70969.0,70968.0,1.89360138]
[1717554345528,0.102,70969.0,70968.0,1.69360138]
[1717554345754,0.3503,70969.0,70968.0,1.34508438]
[1717554345958,0.3503,70969.0,70968.0,1.26348659]
[1717554346166,0.3503,70969.0,70968.0,1.24768024]
[1717554346403,0.3503,70969.0,70968.0,1.23368024]
[1717554346621,0.3503,70969.0,70968.0,1.3266348]
[1717554346821,0.3503,70969.0,70968.0,1.3596348]
[1717554347251,0.3503,70969.0,70968.0,1.3356348]
[1717554347468,0.3503,70969.0,70968.0,1.37068024]
[1717554347469,0.102,70969.0,70968.0,1.37068024]
[1717554347689,0.1846,70969.0,70968.0,1.18998024]
[1717554347892,0.3351,70969.0,70968.0,1.17248659]
[1717554348122,0.3351,70969.0,70968.0,1.27068024]
[1717554348351,0.3351,70969.0,70968.0,1.25668024]
[1717554348564,0.3351,70969.0,70968.0,1.27068024]
[1717554349039,0.3351,70969.0,70968.0,1.24268024]
[1717554349260,0.3351,70969.0,70968.0,1.27068024]
[1717554349486,0.3351,70969.0,70968.0,0.71496959]
[1717554349737,0.3351,70969.0,70968.0,0.81684565]
[1717554349967,0.3351,70969.0,70968.0,0.75366959]
[1717554350181,0.3351,70969.0,70968.0,0.80978863]
[1717554350333,0.3351,70969.0,70968.0,0.48585259]
[1717554351141,0.3351,70969.0,70968.0,0.43315259]
[1717554351341,0.3351,70969.0,70968.0,0.48585259]
[1717554351759,0.3351,70969.0,70968.0,0.49985259]
[1717554351965,0.3351,70969.0,70968.0,0.48585259]
[1717554352159,0.3351,70969.0,70968.0,0.53502865]
[1717554352367,0.3351,70969.0,70968.0,0.54902865]
[1717554352584,0.3351,70969.0,70968.0,0.53502865]
[1717554352803,0.3351,70969.0,70968.0,0.54902865]
[1717554352943,0.3351,70969.0,70968.0,0.56302865]
[1717554353341,0.3351,70969.0,70968.0,0.49985259]
[1717554353773,0.3351,70969.0,70968.0,0.57014577]
[1717554354029,0.3351,70969.0,70968.0,0.58414577]
[1717554354245,0.3351,70969.0,70968.0,0.57014577]
[1717554354413,0.3351,70969.0,70968.0,0.48585259]
[1717554354584,0.3351,70969.0,70968.0,0.49985259]
[1717554355377,0.3351,70969.0,70968.0,0.48585259]
[1717554355569,0.3351,70969.0,70968.0,0.57015322]
[1717554355791,0.3351,70969.0,70968.0,0.58415322]
[1717554356219,0.3351,70969.0,70968.0,0.59415322]
[1717554356858,0.3351,70969.0,70968.0,0.58415322]
[1717554357407,0.3351,70969.0,70968.0,0.59415322]
[1717554358538,0.3351,70969.0,70968.0,0.43315259]
[1717554358782,0.3351,70969.0,70968.0,0.49985259]
[1717554359550,0.3351,70969.0,70968.0,0.87597605]
[1717554359798,0.3351,70969.0,70968.0,0.86597605]
[1717554360879,0.3351,70969.0,70968.0,0.78166959]
[1717554361539,0.3351,70969.0,70968.0,0.86597716]
[1717554363138,0.3351,70969.0,70968.0,0.87597716]
[1717554363747,0.3351,70969.0,70968.0,0.86597716]
[1717554364006,0.3351,70969.0,70968.0,0.87597716]
[1717554364434,0.3351,70969.0,70968.0,0.79166959]
[1717554364766,0.3351,70969.0,70968.0,0.78166959]
[1717554365207,0.3351,70969.0,70968.0,0.79166959]
[1717554365469,0.3351,70969.0,70968.0,0.78166959]
[1717554367743,0.3351,70969.0,70968.0,0.79166959]
[1717554368454,0.3351,70969.0,70968.0,0.71496959]
[1717554368600,0.3351,70969.0,70968.0,0.78166959]
[1717554368780,0.3351,70969.0,70968.0,0.86598093]
[1717554368985,0.3351,70969.0,70968.0,0.028]
[1717554369190,0.33527434,70969.0,70968.0,0.028]
[1717554369390,0.47618034,70969.0,70968.0,0.028]
[1717554369817,0.47618034,70969.0,70954.0,0.51525714]
[1717554370007,0.47618034,70969.0,70960.0,0.0667]
[1717554370008,0.2305,70964.0,70960.0,0.0667]
[1717554370220,0.140916,70965.0,70960.0,0.0667]
[1717554370221,0.1546,70963.0,70960.0,0.0667]
[1717554370429,0.1546,70961.0,70960.0,0.0667]
[1717554370632,0.2305,70961.0,70960.0,0.0667]
[1717554370831,0.2305,70961.0,70960.0,0.08652566]
[1717554371313,0.2305,70961.0,70960.0,0.0667]
[1717554372388,0.2305,70961.0,70960.0,0.08652566]
[1717554372569,0.2305,70961.0,70960.0,0.028]
[1717554373027,0.2305,70961.0,70960.0,0.014]
[1717554375000,0.1506,70962.0,70960.0,0.014]
[1717554375217,0.2319,70961.0,70960.0,0.028]
[1717554375426,0.2319,70961.0,70960.0,0.014]
[1717554375654,0.2319,70961.0,70960.0,0.028]
[1717554375879,0.2319,70961.0,70960.0,0.03382566]
[1717554376026,0.2319,70961.0,70960.0,0.01982566]
[1717554376246,0.2319,70961.0,70960.0,0.03382566]
[1717554376504,0.2319,70961.0,70960.0,0.04782566]
[1717554376766,0.2319,70961.0,70960.0,0.01982566]
[1717554376988,0.2319,70961.0,70960.0,0.03382566]
[1717554377215,0.2319,70961.0,70960.0,0.014]
[1717554378323,0.2319,70961.0,70960.0,0.03382566]
[1717554378326,0.2319,70961.0,70960.0,0.014]
[1717554378546,0.2319,70961.0,70960.0,0.04782566]
[1717554378788,0.2319,70961.0,70960.0,0.028]
[1717554380592,0.2319,70961.0,70960.0,0.0947]
[1717554381844,0.372822,70961.0,70960.0,0.0947]
[1717554382475,0.37299634,70961.0,70960.0,0.0947]
[1717554382890,0.372822,70961.0,70960.0,0.0947]
[1717554383332,0.2319,70961.0,70960.0,0.0947]
[1717554387079,0.2319,70961.0,70960.0,0.11452566]
[1717554391526,0.102,70969.0,70966.0,0.01982566]
[1717554391867,0.102,70969.0,70968.0,0.0667]
[1717554392073,0.102,70969.0,70968.0,0.08652566]
[1717554393231,0.102,70969.0,70968.0,0.10052566]
[1717554394670,0.102,70969.0,70968.0,0.11452566]
[1717554395352,0.102,70969.0,70968.0,0.25543366]
[1717554395580,0.102,70969.0,70968.0,1.08166959]
[1717554395808,0.102,70969.0,70968.0,1.42296959]
[1717554396244,0.102,70969.0,70968.0,1.50725335]
[1717554396454,0.102,70969.0,70968.0,1.42296959]
[1717554396665,0.102,70969.0,70968.0,1.40896959]
[1717554396885,0.102,70969.0,70968.0,1.51432429]
[1717554397099,0.102,70969.0,70968.0,1.52832429]
[1717554397558,0.102,70969.0,70968.0,1.51432429]
[1717554397778,0.102,70969.0,70968.0,1.52832429]
[1717554397999,0.10286,70969.0,70968.0,1.52832429]
[1717554398215,0.10286,70969.0,70968.0,1.51432429]
[1717554398642,0.10286,70969.0,70968.0,1.52832429]
[1717554399092,0.10286,70969.0,70968.0,1.89614129]
[1717554399322,0.0078614,70975.0,70974.0,0.97820766]
[1717554399549,0.0078614,70975.0,70974.0,1.3878355]
[1717554399763,0.0078614,70975.0,70974.0,1.38783474]
[1717554400005,0.0078614,70975.0,70974.0,1.41083474]
[1717554401237,0.0078614,70975.0,70974.0,1.32664688]
[1717554401450,0.0078614,70975.0,70974.0,1.34064688]
[1717554401853,0.0078614,70975.0,70974.0,1.32664688]
[1717554402265,0.0078614,70975.0,70974.0,1.35464688]
[1717554402704,0.0078614,70975.0,70974.0,1.34064688]
[1717554402939,0.0078614,70975.0,70974.0,1.35464688]
[1717554403366,0.0078614,70975.0,70974.0,1.41774988]
[1717554404401,0.0078614,70975.0,70974.0,1.35104988]
[1717554404607,0.0078614,70975.0,70974.0,1.38942959]
[1717554404814,0.0078614,70975.0,70974.0,1.32632659]
[1717554405236,0.0078614,70975.0,70974.0,1.38941321]
[1717554405853,0.0078614,70975.0,70974.0,1.40341321]
[1717554406311,0.0078614,70975.0,70974.0,1.60341321]
[1717554406694,0.0078614,70975.0,70974.0,1.38941321]
[1717554407154,0.00861,70978.0,70974.0,1.38941321]
[1717554407155,0.00861,70978.0,70976.0,1.22428766]
[1717554407364,0.00861,70978.0,70976.0,1.45807525]
[1717554407622,0.00861,70978.0,70977.0,1.02427766]
[1717554407851,0.00861,70978.0,70977.0,1.67538321]
[1717554408332,0.00861,70978.0,70977.0,1.61229659]
[1717554408551,0.00579373,70984.0,70983.0,0.97811766]
[1717554408802,0.00579373,70984.0,70983.0,1.18923659]
[1717554410491,0.00579373,70984.0,70983.0,1.20323659]
[1717554411346,0.00579373,70984.0,70983.0,1.21723659]
[1717554413520,0.00579373,70984.0,70983.0,1.34023659]
[1717554413737,0.00579373,70984.0,70983.0,1.64023659]
[1717554414192,0.00579373,70984.0,70983.0,1.44023659]
[1717554414409,0.00579373,70984.0,70983.0,1.42623659]
[1717554414629,0.00579373,70984.0,70983.0,1.41223659]
[1717554414839,0.00579373,70984.0,70983.0,1.42623659]
[1717554415082,0.00579373,70984.0,70983.0,1.44023659]
[1717554415949,0.00579373,70984.0,70983.0,1.92199359]
[1717554420087,0.00579373,70984.0,70983.0,1.72199359]
[1717554421216,0.00579373,70984.0,70983.0,1.92199359]
[1717554421646,0.00579373,70984.0,70983.0,1.72199359]
[1717554421881,0.00579373,70984.0,70983.0,1.92199359]
[1717554422528,0.00579373,70984.0,70983.0,1.72199359]
[1717554423208,0.00086,70985.0,70984.0,0.92982566]
[1717554423430,0.00863,70997.0,70996.0,0.95238466]
[1717554423649,0.00863,70997.0,70996.0,1.51910359]
[1717554424514,0.00863,70997.0,70996.0,1.45240359]
[1717554424771,0.00863,70997.0,70996.0,1.79080959]
[1717554424999,0.00863,70997.0,70996.0,1.80080959]
[1717554425884,0.00863,70997.0,70996.0,1.74810959]
[1717554426097,0.00863,70997.0,70996.0,1.81480959]
[1717554426725,0.00863,70997.0,70996.0,1.82880959]
[1717554428042,0.00863,70997.0,70996.0,1.58620959]
[1717554428264,0.00863,70997.0,70996.0,1.59620959]
[1717554430996,0.00863,70997.0,70996.0,1.51950959]
[1717554431215,0.00863,70997.0,70996.0,1.59620959]
[1717554431653,0.00863,70997.0,70996.0,1.58620959]
[1717554433485,0.17203,70997.0,70996.0,1.58620959]
[1717554433744,0.00863,70997.0,70996.0,0.81327193]
[1717554433946,0.24823,70997.0,70996.0,0.028]
[1717554434161,0.24823,70997.0,70996.0,0.0947]
[1717554434767,0.24823,70997.0,70996.0,0.0667]
[1717554435244,0.24823,70997.0,70996.0,0.10052566]
[1717554435468,0.24823,70997.0,70996.0,0.08652566]
[1717554435690,0.24823,70997.0,70996.0,0.10052566]
[1717554436291,0.24823,70997.0,70996.0,0.11452566]
[1717554436549,0.24823,70997.0,70996.0,0.0807]
[1717554436802,0.24823,70997.0,70996.0,0.0667]
[1717554437285,0.24823,70997.0,70996.0,0.0807]
[1717554437745,0.24823,70997.0,70996.0,0.10052566]
[1717554438657,0.24823,70997.0,70996.0,0.11452566]
[1717554438894,0.24823,70997.0,70996.0,0.0947]
[1717554439119,0.24823,70997.0,70996.0,0.11452566]
[1717554439747,0.24823,70997.0,70996.0,0.0947]
[1717554440338,0.24823,70997.0,70996.0,0.11452566]
[1717554441098,0.24823,70997.0,70996.0,0.0947]
[1717554441303,0.24823,70997.0,70996.0,0.11452566]
[1717554442742,0.24840434,70997.0,70996.0,0.028]
[1717554443036,0.38925534,70997.0,70996.0,0.028]
[1717554443371,0.38925534,70997.0,70996.0,0.014]
[1717554444141,0.38925534,70997.0,70996.0,0.028]
[1717554444358,0.38925534,70997.0,70996.0,0.014]
[1717554444560,0.67095734,70997.0,70996.0,0.014]
[1717554445557,0.67095734,70997.0,70983.0,0.0667]
[1717554445558,0.1531,70988.0,70983.0,0.0667]
[1717554445765,0.077,70987.0,70983.0,0.08102029]
[1717554445976,0.1646,70986.0,70983.0,0.08102029]
[1717554446961,0.1646,70986.0,70983.0,0.02832029]
[1717554447380,0.1646,70986.0,70984.0,0.0667]
[1717554449210,0.1646,70986.0,70984.0,0.0807]
[1717554449637,0.1646,70986.0,70984.0,0.0947]
[1717554450921,0.1646,70986.0,70984.0,0.028]
[1717554451369,0.0802,70985.0,70984.0,0.028]
[1717554451542,0.2425,70985.0,70984.0,0.028]
[1717554452511,0.2425,70985.0,70984.0,0.014]
[1717554452951,0.2425,70985.0,70983.0,0.01432029]
[1717554453151,0.2425,70985.0,70984.0,0.014]
[1717554453371,0.2425,70985.0,70984.0,0.028]
[1717554453798,0.2425,70985.0,70984.0,0.014]
[1717554454196,0.38354834,70985.0,70984.0,0.014]
[1717554454428,0.50746759,70997.0,70984.0,0.014]
[1717554454429,0.1651,70995.0,70984.0,0.014]
[1717554454663,0.1651,70995.0,70984.0,0.10052566]
[1717554454664,0.140857,70994.0,70984.0,0.10052566]
[1717554454868,0.10403993,70997.0,70984.0,0.0807]
[1717554454869,0.07827434,70993.0,70984.0,0.0807]
[1717554455066,0.1651,70989.0,70984.0,0.0807]
[1717554455562,0.0787,70988.0,70984.0,0.0667]
[1717554455964,0.0787,70988.0,70984.0,0.0807]
[1717554456377,0.0787,70988.0,70984.0,0.11452566]
[1717554456579,0.0787,70988.0,70984.0,0.12852566]
[1717554456805,0.0787,70988.0,70985.0,0.01982566]
[1717554456979,0.0787,70988.0,70984.0,0.0667]
[1717554457364,0.0787,70988.0,70984.0,0.0947]
[1717554458029,0.0787,70988.0,70984.0,0.0807]
[1717554458524,0.0787,70988.0,70984.0,0.0947]
[1717554458735,0.0787,70988.0,70984.0,0.0807]
[1717554459110,0.0787,70988.0,70984.0,0.0947]
[1717554459327,0.0787,70988.0,70984.0,0.0807]
[1717554459713,0.0787,70988.0,70984.0,0.0947]
[1717554459911,0.0787,70988.0,70984.0,0.0807]
[1717554460115,0.0787,70988.0,70984.0,0.0947]
[1717554460319,0.0787,70988.0,70984.0,0.1087]
[1717554460512,0.0787,70988.0,70984.0,0.0947]
[1717554461622,0.0787,70988.0,70984.0,0.1047]
[1717554461833,0.0787,70988.0,70984.0,0.0947]
[1717554462042,0.0787,70988.0,70984.0,0.1087]
[1717554462635,0.0787,70988.0,70984.0,0.12852566]
[1717554462843,0.0787,70988.0,70985.0,0.01982566]
[1717554463249,0.0787,70988.0,70984.0,0.1087]
[1717554463603,0.0787,70988.0,70984.0,0.12852566]
[1717554463805,0.0787,70988.0,70984.0,0.08652566]
[1717554464217,0.0787,70988.0,70985.0,0.03382566]
[1717554464644,0.0787,70988.0,70986.0,0.01982566]
[1717554466561,0.0787,70988.0,70986.0,0.03382566]
[1717554466896,0.0787,70988.0,70986.0,0.0807]
[1717554467697,0.0787,70988.0,70986.0,0.0947]
[1717554468408,0.0787,70988.0,70986.0,0.11452566]
[1717554468799,0.0787,70988.0,70986.0,0.0947]
[1717554474001,0.0787,70988.0,70986.0,0.028]
[1717554483905,0.0787,70988.0,70987.0,0.07304149]
[1717554484698,0.38114234,70988.0,70987.0,0.07304149]
[1717554485087,0.38114234,70988.0,70987.0,0.08704149]
[1717554485290,0.38114234,70988.0,70987.0,0.10136178]
[1717554486269,0.37981986,70988.0,70987.0,0.10136178]
[1717554486421,0.3786317,70988.0,70987.0,0.10136178]
[1717554487074,0.3786317,70988.0,70987.0,0.11536178]
[1717554489112,0.3786317,70988.0,70987.0,0.10104149]
[1717554489639,0.3786317,70988.0,70987.0,0.028]
[1717554489838,0.37845736,70988.0,70987.0,0.10104523]
[1717554490174,0.3786317,70988.0,70987.0,0.10104523]
[1717554492718,0.00086,70991.0,70987.0,0.16774523]
[1717554492926,0.00086,70991.0,70990.0,0.0667]
[1717554493359,0.00086,70991.0,70990.0,0.07304523]
[1717554494696,0.00086,70991.0,70990.0,0.08604523]
[1717554494916,0.00086,70991.0,70990.0,0.09904523]
[1717554499793,0.00086,70991.0,70990.0,0.14128563]